fUSD/lending_fUSD_20241030
["ID","MTS","AMOUNT","RATE_DAILY","PERIOD"]
[341026408,1730281848163,-500.0,0.00034897,5]
[341026409,1730281848177,-526.11418487,0.00034897,5]
[341026410,1730281848192,-1095.87,0.00034897,5]
[341026411,1730281848206,-500.0,0.00034897,5]
[341026412,1730281848221,-500.0,0.00034897,5]
[341026413,1730281848235,-513.21830519,0.00034897,5]
[341026414,1730281848250,-500.0,0.00034897,5]
[341026415,1730281848265,-500.0,0.00034897,5]
[341026416,1730281848279,-500.0,0.00034897,5]
[341026417,1730281848294,-500.0,0.00034897,5]
[341026418,1730281848308,-500.0,0.00034897,5]
[341026419,1730281848323,-500.0,0.00034897,5]
[341026420,1730281848337,-991.85,0.00034897,5]
[341026421,1730281848352,-183.33263903,0.00034897,5]
[341026422,1730281848367,-500.0,0.00034897,5]
[341026423,1730281848381,-500.0,0.00034897,5]
[341026424,1730281848395,-500.0,0.00034897,5]
[341026425,1730281848410,-500.0,0.00034897,5]
[341026426,1730281848425,-1164.72,0.00034897,5]
[341026427,1730281848440,-500.0,0.00034897,5]
[341026428,1730281848455,-151.0,0.00034897,7]
[341026429,1730281848470,-151.0,0.00034897,7]
[341026430,1730281848485,-151.0,0.00034897,7]
[341026431,1730281848499,-500.0,0.00034897,5]
[341026432,1730281848513,-500.0,0.00034897,5]
[341026433,1730281848528,-151.0,0.00034897,7]
[341026434,1730281848542,-500.0,0.00034897,5]
[341026435,1730281848557,-157.842565,0.00034897,7]
[341026436,1730281848571,-1225.68,0.00034897,5]
[341026437,1730281848585,-500.0,0.00034897,5]
[341026438,1730281848600,-500.0,0.00034897,5]
[341026439,1730281848611,-601.79608397,0.00034897,5]
[341026440,1730281848623,-500.0,0.00034897,5]
[341026441,1730281848632,-500.0,0.00034897,5]
[341026442,1730281848641,-500.0,0.00034897,5]
[341026443,1730281848651,-152.626132,0.00034897,7]
[341026444,1730281848813,-372.01985698,0.00034897,5]
[341026445,1730281848849,-500.0,0.00034897,5]
[341026446,1730281848860,-500.0,0.00034897,5]
[341026447,1730281848869,-500.0,0.00034897,5]
[341026448,1730281848878,-900.08,0.00034897,5]
[341026449,1730281848888,-500.0,0.00034897,5]
[341026450,1730281848897,-500.0,0.00034897,5]
[341026451,1730281848906,-500.0,0.00034897,7]
[341026452,1730281848916,-500.0,0.00034897,5]
[341026453,1730281848925,-500.0,0.00034897,5]
[341026454,1730281848934,-500.0,0.00034897,5]
[341026455,1730281848943,-570.05,0.00034897,5]
[341026456,1730281848953,-500.0,0.00034897,5]
[341026457,1730281848962,-152.978536,0.00034897,7]
[341026458,1730281848971,-500.0,0.00034897,5]
[341026459,1730281848981,-500.0,0.00034897,5]
[341026460,1730281848990,-500.0,0.00034897,5]
[341026461,1730281848999,-331.15018805,0.00034897,5]
[341026462,1730281849008,-500.0,0.00034897,5]
[341026463,1730281849017,-1824.96,0.00034897,5]
[341026464,1730281849027,-500.0,0.00034897,5]
[341026465,1730281849037,-151.0,0.00034897,7]
[341026466,1730281849046,-151.0,0.00034897,7]
[341026467,1730281849055,-163.793817,0.00034897,7]
[341026468,1730281849064,-1359.2,0.00034897,5]
[341026469,1730281849074,-500.0,0.00034897,5]
[341026470,1730281849083,-500.0,0.00034897,5]
[341026471,1730281849092,-500.0,0.00034897,5]
[341026472,1730281849101,-500.0,0.00034897,5]
[341026473,1730281849111,-1658.82,0.00034897,5]
[341026474,1730281849120,-500.0,0.00034897,5]
[341026475,1730281849130,-500.0,0.00034897,5]
[341026476,1730281849139,-500.0,0.00034897,5]
[341026477,1730281849148,-500.0,0.00034897,5]
[341026478,1730281849158,-1118.51,0.00034897,5]
[341026479,1730281849168,-922.9,0.00034897,5]
[341026480,1730281849177,-500.0,0.00034897,5]
[341026481,1730281849187,-500.0,0.00034897,5]
[341026482,1730281849196,-18955.78166274,0.00034897,2]
[341026483,1730281849205,-500.0,0.00034897,5]
[341026484,1730281849215,-2308.81,0.00034897,5]
[341026485,1730281849224,-500.0,0.00034897,5]
[341026486,1730281849234,-500.0,0.00034897,5]
[341026487,1730281849243,-500.0,0.00034897,5]
[341026488,1730281849252,-500.0,0.00034897,5]
[341026489,1730281849261,-500.0,0.00034897,5]
[341026490,1730281849271,-500.0,0.00034897,5]
[341026491,1730281849280,-152.75107568,0.00034897,5]
[341026492,1730281849290,-1120.36,0.00034897,5]
[341026493,1730281849300,-752.96,0.00034897,5]
[341026494,1730281849309,-513.85246437,0.00034897,5]
[341026495,1730281849319,-500.0,0.00034897,5]
[341026496,1730281849328,-505.52380993,0.00034897,5]
[341026497,1730281849337,-500.0,0.00034897,5]
[341026498,1730281849347,-500.0,0.00034897,5]
[341026499,1730281849356,-500.0,0.00034897,5]
[341026500,1730281849366,-500.0,0.00034897,5]
[341026501,1730281849375,-500.0,0.00034897,5]
[341026502,1730281849385,-614.01,0.00034897,5]
[341026503,1730281849394,-500.0,0.00034897,5]
[341026504,1730281849403,-500.0,0.00034897,5]
[341026505,1730281849413,-500.0,0.00034897,5]
[341026506,1730281849422,-500.0,0.00034897,5]
[341026507,1730281849431,-500.0,0.00034897,5]
[341026508,1730281849440,-500.0,0.00034897,5]
[341026509,1730281849450,-500.0,0.00034897,5]
[341026510,1730281849459,-500.0,0.00034897,5]
[341026511,1730281849468,-500.0,0.00034897,5]
[341026512,1730281849478,-599.49,0.00034897,5]
[341026513,1730281849488,-504.57351437,0.00034897,5]
[341026514,1730281849497,-500.0,0.00034897,5]
[341026515,1730281849507,-500.0,0.00034897,5]
[341026516,1730281849516,-500.0,0.00034897,5]
[341026517,1730281849525,-500.0,0.00034897,5]
[341026518,1730281849535,-1028.21,0.00034897,5]
[341026519,1730281849545,-500.0,0.00034897,5]
[341026520,1730281849555,-500.0,0.00034897,5]
[341026521,1730281849564,-500.0,0.00034897,5]
[341026522,1730281849574,-507.79917703,0.00034897,5]
[341026523,1730281849584,-1107.43,0.00034897,5]
[341026524,1730281849593,-500.0,0.00034897,5]
[341026525,1730281849602,-573.87223153,0.00034897,2]
[341026526,1730281849611,-500.0,0.00034897,5]
[341026527,1730281849624,-500.0,0.00034897,5]
[341026528,1730281849633,-167.02704142,0.00034897,5]
[341026529,1730281849643,-255.38725908,0.00034897,5]
[341026530,1730281849651,-151.0,0.00034897,7]
[341026531,1730281849660,-539.11253301,0.00034897,5]
[341026532,1730281849670,-500.0,0.00034897,5]
[341026533,1730281849680,-500.0,0.00034897,5]
[341026534,1730281849689,-500.0,0.00034897,5]
[341026535,1730281849700,-500.0,0.00034897,5]
[341026536,1730281849710,-500.0,0.00034897,5]
[341026537,1730281849720,-500.0,0.00034897,5]
[341026538,1730281849729,-500.0,0.00034897,5]
[341026539,1730281849739,-500.0,0.00034897,5]
[341026540,1730281849749,-500.0,0.00034897,5]
[341026541,1730281849759,-500.0,0.00034897,5]
[341026542,1730281849770,-500.0,0.00034897,5]
[341026543,1730281849779,-1387.33,0.00034897,5]
[341026544,1730281849791,-500.0,0.00034897,5]
[341026545,1730281849801,-428.36907733,0.00034897,5]
[341026546,1730281849810,-500.0,0.00034897,5]
[341026547,1730281849820,-500.0,0.00034897,5]
[341026548,1730281849830,-500.0,0.00034897,5]
[341026549,1730281849839,-502.49797421,0.00034897,5]
[341026550,1730281849848,-500.0,0.00034897,5]
[341026551,1730281849859,-500.0,0.00034897,5]
[341026552,1730281849868,-500.0,0.00034897,5]
[341026553,1730281849878,-500.0,0.00034897,5]
[341026554,1730281849888,-2000.0,0.00034897,5]
[341026555,1730281849897,-500.0,0.00034897,5]
[341026556,1730281849907,-500.0,0.00034897,5]
[341026557,1730281849916,-369.38320634,0.00034897,5]
[341026558,1730281849926,-500.0,0.00034897,5]
[341026559,1730281849935,-500.0,0.00034897,5]
[341026560,1730281849944,-500.0,0.00034897,5]
[341026561,1730281849954,-617.83464687,0.00034897,5]
[341026562,1730281849964,-500.0,0.00034897,5]
[341026563,1730281849973,-500.0,0.00034897,5]
[341026564,1730281849982,-831.74,0.00034897,5]
[341026565,1730281849992,-500.0,0.00034897,5]
[341026566,1730281850001,-541.83823747,0.00034897,5]
[341026567,1730281850010,-500.0,0.00034897,5]
[341026568,1730281850020,-500.0,0.00034897,5]
[341026569,1730281850030,-500.0,0.00034897,5]
[341026570,1730281850040,-500.0,0.00034897,5]
[341026571,1730281850049,-500.0,0.00034897,5]
[341026572,1730281850058,-500.0,0.00034897,5]
[341026573,1730281850068,-500.0,0.00034897,5]
[341026574,1730281850077,-500.0,0.00034897,5]
[341026575,1730281850086,-570.46,0.00034897,5]
[341026576,1730281850095,-500.0,0.00034897,5]
[341026577,1730281850105,-1598.83,0.00034897,5]
[341026578,1730281850114,-500.0,0.00034897,5]
[341026579,1730281850124,-500.0,0.00034897,5]
[341026580,1730281850133,-500.0,0.00034897,5]
[341026581,1730281850142,-2927.79,0.00034897,5]
[341026582,1730281850151,-500.0,0.00034897,5]
[341026583,1730281850161,-500.0,0.00034897,5]
[341026584,1730281850170,-21.36042123,0.00034897,5]
[341026585,1730281850466,-478.63957877,0.00034897,5]
[341026586,1730281850476,-500.0,0.00034897,5]
[341026587,1730281850485,-3377.57154944,0.00034897,5]
[341026588,1730281851057,-500.0,0.00034796,5]
[341026589,1730281851067,-246.899903,0.00034897,5]
[341026590,1730281851090,-98.16854756,0.00034897,5]
[341026591,1730281851100,-500.0,0.00034897,5]
[341026592,1730281851109,-500.0,0.00034897,5]
[341026593,1730281851119,-500.0,0.00034897,5]
[341026594,1730281851128,-500.0,0.00034897,5]
[341026595,1730281851139,-500.0,0.00034897,5]
[341026596,1730281851149,-500.0,0.00034897,5]
[341026597,1730281851159,-500.0,0.00034897,5]
[341026598,1730281851168,-151.0,0.00034897,7]
[341026599,1730281851179,-151.0,0.00034897,7]
[341026600,1730281851188,-273.034578,0.00034897,7]
[341026601,1730281851199,-500.0,0.00034897,5]
[341026602,1730281851208,-500.0,0.00034897,5]
[341026603,1730281851217,-538.65,0.00034897,5]
[341026604,1730281851227,-500.0,0.00034897,5]
[341026605,1730281851236,-500.0,0.00034897,5]
[341026606,1730281851246,-500.0,0.00034897,5]
[341026607,1730281851255,-194.06238076,0.00034897,5]
[341026608,1730281851271,-305.93761924,0.00034897,5]
[341026609,1730281851281,-500.0,0.00034897,5]
[341026610,1730281851290,-500.0,0.00034897,5]
[341026611,1730281851300,-500.0,0.00034897,5]
[341026612,1730281851309,-500.0,0.00034897,5]
[341026613,1730281851318,-378.56238076,0.00034897,5]
[341026616,1730281981492,300.0,0.00019725,2]
[341026617,1730281998091,160.21,0.00015342,2]
[341026624,1730282702211,-167.42,0.00026747,2]
[341026625,1730282717525,-1652.81725,0.0003,2]
[341026626,1730282717549,-1652.81725,0.0003,2]
[341026627,1730282749713,-837.98,0.00031394,2]
[341026628,1730282749734,-216.88,0.00032266,2]
[341026629,1730282760106,-250.0,0.00033198,120]
[341026630,1730282760128,-8327.67,0.00033209,2]
[341026631,1730282760149,-489.34,0.00033299,2]
[341026632,1730282760171,-200.0,0.00033324,2]
[341026633,1730282760192,-269.13,0.00033324,2]
[341026634,1730282760214,-808.94,0.00033354,2]
[341026635,1730282760385,-150.0,0.00033382,7]
[341026636,1730282760407,-2788.1,0.00033466,2]
[341026637,1730282760430,-152.0,0.000335,3]
[341026638,1730282760453,-837.98,0.00033658,2]
[341026639,1730282760475,-1000.0,0.00033717,2]
[341026640,1730282760497,-250.0,0.00033767,2]
[341026641,1730282760521,-150.99,0.00033767,2]
[341026642,1730282760545,-157.6,0.00033966,2]
[341026643,1730282760567,-2000.0,0.00034,2]
[341026644,1730282760587,-167.0,0.00034411,2]
[341026645,1730282760613,-168.54093002,0.00034596,15]
[341026646,1730282760634,-500.0,0.00034597,2]
[341026647,1730282760655,-2047.0461,0.00034597,2]
[341026648,1730282760677,-572.8108,0.00034597,2]
[341026649,1730282760698,-1569.2611,0.00034597,2]
[341026650,1730282760720,-1202.0218,0.00034597,2]
[341026651,1730282760742,-1000.0,0.00034597,2]
[341026652,1730282760765,-500.0,0.00034673,5]
[341026653,1730282760786,-165.27919201,0.00034696,10]
[341026654,1730282760809,-154.530973,0.00034696,5]
[341026655,1730282760833,-1072.73,0.00034696,5]
[341026656,1730282760854,-500.0,0.00034696,2]
[341026657,1730282760875,-500.0,0.00034696,5]
[341026658,1730282760897,-500.0,0.00034696,5]
[341026659,1730282760919,-500.0,0.00034696,5]
[341026660,1730282760940,-730.17,0.00034696,5]
[341026661,1730282760965,-669.39,0.00034696,5]
[341026662,1730282760988,-500.0,0.00034696,5]
[341026663,1730282761010,-1604.97,0.00034696,5]
[341026664,1730282761031,-411.99352258,0.00034696,5]
[341026665,1730282761053,-554.83047128,0.00034696,5]
[341026666,1730282761073,-500.0,0.00034696,5]
[341026667,1730282761095,-22.81511111,0.00034696,5]
[341026668,1730282851099,-2500.0,0.00034597,2]
[341026669,1730282851121,-219.4076,0.00034597,2]
[341026670,1730282851145,-1449.46048584,0.00034696,2]
[341026671,1730282851169,-1011.91574428,0.00034696,5]
[341026677,1730283032096,-157.6,0.0003383,2]
[341026679,1730283032106,-500.0,0.00034673,5]
[341026681,1730283032116,-23.35914461,0.00034696,5]
[341026682,1730283032126,-557.18,0.00034696,5]
[341026683,1730283032135,-499.1998,0.00034696,5]
[341026684,1730283032145,-500.0,0.00034696,5]
[341026685,1730283032154,-500.0,0.00034696,5]
[341026686,1730283032165,-500.0,0.00034696,5]
[341026687,1730283032175,-500.0,0.00034696,5]
[341026688,1730283032184,-500.0,0.00034696,5]
[341026689,1730283032194,-510.68,0.00034696,5]
[341026690,1730283032203,-500.0,0.00034696,5]
[341026691,1730283032213,-500.0,0.00034696,5]
[341026692,1730283032223,-1203.21,0.00034696,5]
[341026693,1730283032232,-500.0,0.00034696,5]
[341026694,1730283032243,-500.0,0.00034696,5]
[341026695,1730283032252,-500.0,0.00034696,5]
[341026696,1730283032261,-567.74,0.00034696,5]
[341026697,1730283032271,-500.0,0.00034696,5]
[341026698,1730283032280,-331.4234231,0.00034696,5]
[341026699,1730283032290,-500.0,0.00034696,5]
[341026700,1730283032299,-548.48545501,0.00034696,5]
[341026701,1730283032308,-500.0,0.00034696,5]
[341026702,1730283032318,-1673.41,0.00034696,5]
[341026703,1730283032327,-529.40719772,0.00034696,5]
[341026704,1730283032336,-500.0,0.00034696,5]
[341026705,1730283032346,-500.0,0.00034696,5]
[341026706,1730283032356,-500.0,0.00034696,5]
[341026707,1730283032365,-500.0,0.00034696,5]
[341026708,1730283032375,-500.0,0.00034696,5]
[341026709,1730283032384,-856.1,0.00034696,5]
[341026710,1730283032394,-500.0,0.00034696,5]
[341026711,1730283032404,-500.0,0.00034696,5]
[341026712,1730283032413,-500.0,0.00034696,5]
[341026713,1730283032423,-500.0,0.00034696,5]
[341026714,1730283032432,-500.0,0.00034696,5]
[341026715,1730283032442,-1304.36,0.00034696,5]
[341026716,1730283032451,-500.0,0.00034696,5]
[341026717,1730283032461,-500.0,0.00034696,5]
[341026718,1730283032470,-500.0,0.00034696,5]
[341026719,1730283032479,-500.0,0.00034696,5]
[341026720,1730283032489,-879.46,0.00034696,5]
[341026721,1730283032499,-500.0,0.00034696,5]
[341026723,1730283032513,-637.68,0.00034696,5]
[341026725,1730283032523,-500.0,0.00034696,5]
[341026727,1730283032533,-500.0,0.00034696,5]
[341026728,1730283032542,-500.0,0.00034696,5]
[341026730,1730283032552,-500.0,0.00034696,5]
[341026732,1730283032561,-500.0,0.00034696,5]
[341026734,1730283032571,-500.0,0.00034696,5]
[341026736,1730283032581,-500.0,0.00034696,5]
[341026737,1730283032591,-500.0,0.00034696,5]
[341026738,1730283032600,-500.0,0.00034696,5]
[341026739,1730283032610,-500.0,0.00034696,5]
[341026740,1730283032621,-232.19667741,0.00034696,5]
[341026741,1730283032631,-500.0,0.00034696,5]
[341026742,1730283032641,-500.0,0.00034696,5]
[341026743,1730283032652,-500.0,0.00034696,5]
[341026744,1730283032663,-859.01,0.00034696,5]
[341026745,1730283032672,-500.0,0.00034696,5]
[341026746,1730283032682,-726.57,0.00034696,5]
[341026747,1730283032691,-500.0,0.00034696,5]
[341026748,1730283032701,-500.0,0.00034696,5]
[341026749,1730283032711,-500.0,0.00034696,5]
[341026750,1730283032720,-500.0,0.00034696,5]
[341026751,1730283032731,-630.19,0.00034696,5]
[341026752,1730283032740,-500.0,0.00034696,5]
[341026753,1730283032750,-500.0,0.00034696,5]
[341026754,1730283032760,-500.0,0.00034696,5]
[341026755,1730283032770,-500.0,0.00034696,5]
[341026756,1730283032779,-500.0,0.00034696,5]
[341026757,1730283032789,-538.75,0.00034696,5]
[341026758,1730283032799,-525.78766143,0.00034696,5]
[341026759,1730283032808,-535.41,0.00034696,5]
[341026760,1730283032817,-500.0,0.00034696,5]
[341026761,1730283032827,-500.0,0.00034696,5]
[341026762,1730283032836,-500.0,0.00034696,5]
[341026763,1730283032846,-500.0,0.00034696,5]
[341026764,1730283032855,-528.67842574,0.00034696,5]
[341026765,1730283032864,-588.12366189,0.00034696,5]
[341026766,1730283032874,-500.0,0.00034696,5]
[341026767,1730283032883,-500.0,0.00034696,5]
[341026768,1730283032892,-500.0,0.00034696,5]
[341026769,1730283032902,-500.0,0.00034696,5]
[341026770,1730283032911,-847.08,0.00034696,5]
[341026771,1730283032921,-500.0,0.00034696,5]
[341026772,1730283032930,-500.0,0.00034696,5]
[341026773,1730283032939,-500.0,0.00034696,5]
[341026774,1730283032948,-500.0,0.00034696,5]
[341026775,1730283032958,-500.0,0.00034696,5]
[341026776,1730283032967,-580.23,0.00034696,5]
[341026777,1730283032976,-500.0,0.00034696,5]
[341026778,1730283032986,-500.0,0.00034696,5]
[341026779,1730283032995,-200.0,0.00034696,5]
[341026780,1730283033006,-500.0,0.00034696,5]
[341026781,1730283033015,-298.98030533,0.00034696,5]
[341026782,1730283033025,-764.62,0.00034696,5]
[341026783,1730283033034,-174.71235903,0.00034696,5]
[341026784,1730283033043,-500.0,0.00034696,5]
[341026785,1730283033054,-500.0,0.00034696,5]
[341026786,1730283033064,-500.0,0.00034696,5]
[341026787,1730283033073,-1953.45,0.00034696,5]
[341026788,1730283033083,-500.0,0.00034696,5]
[341026789,1730283033092,-504.2,0.00034696,5]
[341026790,1730283033102,-500.0,0.00034696,5]
[341026791,1730283033111,-500.0,0.00034696,5]
[341026792,1730283033121,-868.42,0.00034696,5]
[341026793,1730283033131,-500.0,0.00034696,5]
[341026794,1730283033141,-500.0,0.00034696,5]
[341026795,1730283033151,-500.0,0.00034696,5]
[341026796,1730283033161,-500.0,0.00034696,5]
[341026797,1730283033171,-1034.55,0.00034696,5]
[341026798,1730283033180,-186.8359588,0.00034696,5]
[341026799,1730283033190,-500.0,0.00034696,5]
[341026800,1730283033200,-500.0,0.00034696,5]
[341026801,1730283033210,-500.0,0.00034696,5]
[341026802,1730283033220,-1026.64,0.00034696,5]
[341026803,1730283033230,-1087.4,0.00034696,5]
[341026804,1730283033240,-500.0,0.00034696,5]
[341026805,1730283033250,-500.0,0.00034696,5]
[341026806,1730283033264,-290.60811055,0.00034696,5]
[341026807,1730283033274,-500.0,0.00034696,5]
[341026808,1730283033285,-500.0,0.00034696,5]
[341026809,1730283033295,-500.0,0.00034696,5]
[341026810,1730283033306,-1197.6,0.00034696,5]
[341026811,1730283033315,-625.12,0.00034696,5]
[341026812,1730283033326,-500.0,0.00034696,5]
[341026813,1730283033336,-500.0,0.00034696,5]
[341026814,1730283033346,-500.0,0.00034696,5]
[341026815,1730283033357,-500.0,0.00034696,5]
[341026816,1730283033367,-416.54181938,0.00034696,5]
[341026817,1730283033384,-83.45818062,0.00034696,5]
[341026818,1730283033394,-500.0,0.00034696,5]
[341026819,1730283033404,-80.49840112,0.00034696,5]
[341026820,1730283033416,-419.50159888,0.00034696,5]
[341026821,1730283033426,-500.0,0.00034696,5]
[341026822,1730283033436,-500.0,0.00034696,5]
[341026823,1730283033446,-500.0,0.00034696,5]
[341026824,1730283033456,-1079.49840112,0.00034696,5]
[341026825,1730283033470,-250.31159888,0.00034696,5]
[341026826,1730283033480,-594.28835644,0.00034696,5]
[341026827,1730283033489,-431.94974976,0.00034696,5]
[341026828,1730283033501,-233.15025024,0.00034696,5]
[341026829,1730283033511,-500.0,0.00034696,5]
[341026830,1730283033521,-500.0,0.00034696,5]
[341026831,1730283033531,-500.0,0.00034696,5]
[341026832,1730283033541,-150.0,0.00034696,5]
[341026833,1730283033551,-500.0,0.00034696,5]
[341026834,1730283033560,-500.0,0.00034696,5]
[341026835,1730283033569,-500.0,0.00034696,5]
[341026836,1730283033579,-500.0,0.00034696,5]
[341026837,1730283033588,-500.0,0.00034696,5]
[341026838,1730283033599,-203.33935069,0.00034696,5]
[341026839,1730283033608,-640.05,0.00034696,5]
[341026840,1730283033618,-505.54,0.00034696,5]
[341026841,1730283033627,-213.49473265,0.00034696,5]
[341026842,1730283033639,-286.50526735,0.00034696,5]
[341026843,1730283033649,-134.34847671,0.00034696,5]
[341026844,1730283033664,-340.28165674,0.00034696,5]
[341026845,1730283033676,-25.36986655,0.00034696,5]
[341026846,1730283033686,-500.0,0.00034696,5]
[341026847,1730283033696,-500.0,0.00034696,5]
[341026848,1730283033706,-500.0,0.00034696,5]
[341026849,1730283033716,-446.51425576,0.00034696,5]
[341026850,1730283033729,-53.48574424,0.00034696,5]
[341026851,1730283033739,-652.35,0.00034696,5]
[341026852,1730283033750,-710.08,0.00034696,5]
[341026853,1730283033761,-500.0,0.00034696,5]
[341026854,1730283033771,-517.92,0.00034696,5]
[341026855,1730283033780,-500.0,0.00034696,5]
[341026856,1730283033789,-500.0,0.00034696,5]
[341026857,1730283033799,-500.0,0.00034696,5]
[341026858,1730283033808,-500.0,0.00034696,5]
[341026859,1730283033818,-500.0,0.00034696,5]
[341026860,1730283033827,-549.28,0.00034696,5]
[341026861,1730283033954,-588.12214219,0.00034696,5]
[341026862,1730283033964,-500.0,0.00034696,5]
[341026863,1730283033974,-500.0,0.00034696,5]
[341026864,1730283033983,-500.0,0.00034696,5]
[341026865,1730283033993,-500.0,0.00034696,5]
[341026866,1730283034004,-484.50529953,0.00034696,5]
[341026867,1730283034013,-500.0,0.00034696,5]
[341026868,1730283034023,-557.65569985,0.00034696,5]
[341026869,1730283034033,-500.0,0.00034696,5]
[341026870,1730283034043,-500.0,0.00034696,5]
[341026871,1730283034052,-527.91732752,0.00034696,5]
[341026872,1730283034061,-500.0,0.00034696,5]
[341026873,1730283034071,-500.0,0.00034696,5]
[341026874,1730283034080,-500.0,0.00034696,5]
[341026875,1730283034089,-500.0,0.00034696,5]
[341026876,1730283034098,-500.0,0.00034696,5]
[341026877,1730283034107,-500.0,0.00034696,5]
[341026878,1730283034116,-596.52,0.00034696,5]
[341026879,1730283034126,-500.0,0.00034696,5]
[341026880,1730283034136,-500.0,0.00034696,5]
[341026881,1730283034145,-766.75,0.00034696,5]
[341026882,1730283034154,-499.9998091,0.00034696,5]
[341026883,1730283034164,-500.0,0.00034696,5]
[341026884,1730283034173,-500.0,0.00034696,5]
[341026885,1730283034182,-500.0,0.00034696,5]
[341026886,1730283034192,-500.0,0.00034696,5]
[341026887,1730283034202,-238.32010865,0.00034696,5]
[341026888,1730283034211,-603.18255963,0.00034696,5]
[341026889,1730283034221,-500.0,0.00034696,5]
[341026890,1730283034231,-930.1,0.00034696,5]
[341026891,1730283034240,-500.0,0.00034696,5]
[341026892,1730283034250,-731.62,0.00034696,5]
[341026893,1730283034262,-500.0,0.00034696,5]
[341026894,1730283034271,-500.0,0.00034696,5]
[341026895,1730283034281,-695.11,0.00034696,5]
[341026896,1730283034290,-249.56155793,0.00034696,5]
[341026897,1730283034300,-500.0,0.00034696,5]
[341026898,1730283034309,-1738.44,0.00034696,5]
[341026899,1730283034318,-500.0,0.00034696,5]
[341026900,1730283034328,-1311.44,0.00034696,5]
[341026901,1730283034338,-500.0,0.00034696,5]
[341026902,1730283034348,-500.0,0.00034696,5]
[341026903,1730283034357,-500.0,0.00034696,5]
[341026904,1730283034367,-621.02,0.00034696,5]
[341026905,1730283034377,-500.0,0.00034696,5]
[341026906,1730283034386,-500.0,0.00034696,5]
[341026907,1730283034396,-500.0,0.00034696,5]
[341026908,1730283034406,-500.0,0.00034696,5]
[341026909,1730283034415,-500.0,0.00034696,5]
[341026910,1730283034424,-159.484453,0.00034696,5]
[341026911,1730283034433,-173.769585,0.00034696,5]
[341026912,1730283034443,-945.0,0.00034696,5]
[341026913,1730283034452,-158.539453,0.00034696,5]
[341026914,1730283034461,-500.0,0.00034696,5]
[341026915,1730283034470,-500.0,0.00034696,5]
[341026916,1730283034480,-637.9,0.00034696,5]
[341026917,1730283034489,-500.0,0.00034696,5]
[341026918,1730283034499,-500.0,0.00034696,5]
[341026919,1730283034510,-956.4,0.00034696,5]
[341026920,1730283034520,-498.27437864,0.00034696,5]
[341026921,1730283034529,-500.0,0.00034696,5]
[341026922,1730283034538,-500.0,0.00034696,5]
[341026923,1730283034548,-500.0,0.00034696,5]
[341026924,1730283034558,-546.39,0.00034696,5]
[341026925,1730283034567,-622.93,0.00034696,5]
[341026926,1730283034576,-500.0,0.00034696,5]
[341026927,1730283034589,-500.0,0.00034696,5]
[341026928,1730283034598,-500.0,0.00034696,5]
[341026929,1730283034607,-500.0,0.00034696,5]